[Event "41st Zalakaros Festival 2022"]
[Site "Zalakaros"]
[Date "2022.06.05"]
[Round "1.1"]
[White "Kantor, Gergely"]
[Black "Tulchynskyi, Feliks"]
[Result "1-0"]
[ECO "D35"]
[WhiteElo "2587"]
[BlackElo "2068"]
[Annotator "TA"]
[PlyCount "75"]
[EventDate "2022.06.05"]
[EventType "swiss"]
[EventCountry "HUN"]
[SourceTitle "playchess.com"]
[Source "ChessBase"]
[SourceQuality "1"]
[TimeControl "40/5400+30:1800+30"]

{[%evp 13,75,15,18,17,17,27,48,52,45,25,31,18,0,-29,-8,-32,14,21,36,0,11,0,0,-21,-21,-23,0,0,0,0,0,0,24,-119,0,0,109,105,108,133,263,267,277,268,267,257,226,267,257,259,789,530,570,564,1265,1264,1518,1464,2233,2188,5600,5593,29991,29992]} 1. d4 {[%emt 0:00:33]} d5 {[%emt 0:00:42]} 2. c4 {[%emt 0:00:04]} e6 {[%emt 0:00:11]} 3. Nc3 {[%emt 0:00:24]} Nf6 {[%emt 0:00:17]} 4. cxd5 exd5 {[%emt 0:00:08]} 5. Bg5 {[%emt 0:00:09]} c6 {[%emt 0:00:45]} 6. e3 {[%emt 0:00:49]} Be7 {[%emt 0:01:06]} 7. Bd3 {[%emt 0:01:41]} Nbd7 {[%emt 0:00:28] 7...Nbd7 is better than 7...0-0.} 8. h3 {[%emt 0:02:35][%cal Bh2h3,Bh3h4,Bh4h5][%mdl 32] D35: Queen's Gambit Declined: Exchange Variation.} Nf8 {[%emt 0:03:09]} 9. Qc2 {[%emt 0:12:59]} Ng6 {[%emt 0:06:10]} 10. O-O-O {[%emt 0:10:51] [#] White is slightly better.} O-O $146 {[%emt 0:06:37]} ({Predecessor:} 10... Qa5 11. Nge2 Bd7 12. f4 Nf8 13. f5 O-O-O 14. Bf4 Be8 15. g4 h6 16. Ng1 Bd6 {1-0 (80) Charochkina,D (2289)-But,S (1910) Sochi 2019}) 11. h4 {[%emt 0:03:30]} Re8 {[%emt 0:02:12]} 12. h5 {[%emt 0:04:45]} Nf8 {[%emt 0:02:57]} 13. f3 {[%emt 0:02:50]} b5 {[%emt 0:06:40][%cal Bb7b5,Bb5b4,Bb4b3][%mdl 32]} 14. Kb1 {[%emt 0:11:05]} a5 {[%emt 0:10:06]} (14... h6 $15 {is superior.} 15. Bh4 N8d7) 15. g4 {[%emt 0:02:02]} Ra7 {[%emt 0:14:30]} 16. Bf4 {[%emt 0:02:29]} N6d7 $1 {[%emt 0:02:47]} 17. Nh3 {[%emt 0:08:47]} (17. Nge2 $5 {[%cal Re3e4]}) 17... Nb6 {[%emt 0:01:52]} 18. Rdg1 {[%emt 0:01:43]} b4 {[%emt 0:02:45]} 19. Nd1 {[%emt 0:05:29]} Nc4 {[%emt 0:04:21]} (19... a4 $142) 20. g5 $1 $11 {[%emt 0:01:47]} a4 {[%emt 0:01:03][%cal Ob4b3]} 21. g6 {[%emt 0:06:02]} fxg6 {[%emt 0:00:39]} 22. hxg6 {[%emt 0:01:06]} b3 {[%emt 0:01:10]} (22... Nxg6 $2 23. Bxg6 b3 24. Bxh7+ Kf8 25. Qg2 $18) 23. Qg2 {[%emt 0:06:11] [#]} (23. axb3 axb3 24. gxh7+ Kh8 $19) (23. gxh7+ Kh8 24. Qg2 (24. axb3 axb3 25. Qc3 Bf6 $17) 24... Bd6 25. Bxd6 bxa2+ 26. Ka1 (26. Kxa2 Qxd6 27. Qc2 Nxe3 $11) 26... Qxd6 $11) (23. Qh2 $11 h6 24. a3) 23... Bf6 {[%emt 0:03:04]} (23... h6 $1 $17 {Strongly threatening ...a3.} 24. Bxh6 a3) 24. Ng5 $1 {[%emt 0:05:47][%cal Rg5h7]} Bxg5 {[%emt 0:01:05]} (24... Ba6 $11 {remains equal.} 25. Bxc4 (25. gxh7+ Kh8 $11) (25. Nxh7 Na3+ 26. Ka1 Bxd3 $15) 25... Bxc4) 25. Bxg5 $16 {[%emt 0:00:21][%cal Bf4g5,Bg5f6,Bf6e5][%mdl 32]} (25. Qxg5 Qxg5 26. gxh7+ Kh8 27. Rxg5 Ne6 $15) 25... bxa2+ {[%emt 0:01:53]} 26. Ka1 {[%emt 0:00:29]} (26. Kxa2 $6 Qb6 27. gxh7+ Kh8 28. Bxc4 dxc4 $11) 26... Qc7 {[%emt 0:01:55]} (26... Qd6 $16 27. gxh7+ (27. Bf4 Qb4 $16) 27... Kh8 28. Bxc4 (28. Bf4 Qb4 $16) 28... dxc4) 27. gxh7+ $18 {[%emt 0:04:51]} (27. Bf4 Qb6 28. gxh7+ Kh8 29. Bxc4 dxc4 $18) 27... Kh8 {[%emt 0:00:07] [#]} 28. Bf6 $1 {[%emt 0:00:48][%cal Og2g7][%mdl 512] Threatens to win with Qxg7+! This bishop pair is nice.} Ne6 {[%emt 0:01:33]} 29. Bxc4 {[%emt 0:00:45] Chess con chili.} ({Don't take} 29. Qg6 $6 Qf7 $18) 29... dxc4 {[%emt 0:00:05]} 30. Be5 {[%emt 0:00:05]} ({Don't play} 30. Qg6 $6 Qf7) 30... Qb7 {[%emt 0:02:19]} 31. f4 $40 {[%emt 0:02:45][%cal Bf3f4,Bf4f5,Bf5f6][%mdl 160] White has strong attack.} Nd8 $2 {[%emt 0:01:37]} (31... Rf8 32. Rh5 a3) 32. Nc3 {[%emt 0:00:45]} a3 {[%emt 0:01:55]} 33. bxa3 {[%emt 0:00:20]} Ne6 {[%emt 0:10:43]} 34. f5 {[%emt 0:01:58]} Nc5 {[%emt 0:00:13]} 35. dxc5 {[%emt 0:00:25] White threatens Qe4 and mate.} (35. Qg6 {is a self mate.} Nb3+ 36. Kb2 Nxd4+) 35... Rxe5 {[%emt 0:00:05]} 36. f6 {[%emt 0:00:13] White wants to mate with fxg7+.} g5 {[%emt 0:00:12]} 37. Qg3 {[%emt 0:00:39]} Rf5 {[%emt 0:00:44]} 38. Qd6 {[%emt 0:00:33] Weighted Error Value: White=0.22 (precise) /Black=0.52} 1-0

[Event "41st Zalakaros Festival 2022"]
[Site "Zalakaros"]
[Date "2022.06.05"]
[Round "1.2"]
[White "Csala, Imre"]
[Black "Horvath, Adam"]
[Result "0-1"]
[ECO "E12"]
[WhiteElo "2008"]
[BlackElo "2513"]
[Annotator "TA"]
[PlyCount "50"]
[EventDate "2022.06.05"]
[EventType "swiss"]
[EventCountry "HUN"]
[SourceTitle "playchess.com"]
[Source "ChessBase"]
[SourceQuality "1"]
[TimeControl "40/5400+30:1800+30"]

{[%evp 14,50,-2,-8,16,21,30,38,45,21,54,40,61,6,12,12,16,0,0,0,0,0,0,-163,-128,-230,-209,-413,-397,-388,-402,-768,-771,-959,-474,-444,-396,-2652,-2251]} 1. d4 {[%emt 0:00:33]} Nf6 {[%emt 0:00:39]} 2. Nf3 {[%emt 0:00:06]} b6 {[%emt 0:00:14]} 3. c4 {[%emt 0:00:09]} e6 {[%emt 0:00:24]} 4. a3 {[%emt 0:00:07]} Bb7 {[%emt 0:00:27]} 5. Nc3 {[%emt 0:00:11]} g6 {[%emt 0:01:19]} 6. d5 {[%emt 0:00:43]} Bg7 {[%emt 0:00:26]} 7. g3 {[%emt 0:00:16]} O-O {[%emt 0:00:45]} 8. Bg2 {[%emt 0:00:07]} a5 {[%emt 0:02:15] E12: Queen's Indian: Unusual White 4th moves, 4 a3, 4 Nc3 Bb7 5 a3 and 4 Nc3 Bb7 .} 9. O-O {[%emt 0:00:37] [#]} Re8 $146 {[%emt 0:02:19]} ({Predecessor:} 9... Na6 10. Nd4 e5 11. Ndb5 d6 12. Rb1 h6 13. b4 Qe7 14. e4 axb4 15. axb4 Qd7 16. Re1 {1-0 (47) Mozzino,A-Pisani,C Argentina 1994}) 10. Nd4 {[%emt 0:01:23]} c6 {[%emt 0:09:09] White is slightly better.} 11. e4 {[%emt 0:02:06] e5 is the strong threat.} (11. Bg5 {keeps more tension.} h6 12. Bxf6 Qxf6 13. e3) 11... e5 {[%emt 0:05:03]} 12. Nc2 {[%emt 0:01:20]} Ba6 {[%emt 0:09:48]} 13. Ne3 {[%emt 0:01:26]} ({Better is} 13. b3 $14) 13... cxd5 $1 $11 {[%emt 0:05:32]} 14. exd5 {[%emt 0:00:28]} d6 {[%emt 0:00:07]} 15. b4 {[%emt 0:00:38]} Nbd7 {[%emt 0:00:23][%cal Bb8d7,Bd7e5,Be5f3][%mdl 32]} 16. Re1 {[%emt 0:06:29]} Qc7 {[%emt 0:12:28]} 17. Bf1 {[%emt 0:01:48]} e4 {[%cal Be5e4,Be4f3][%mdl 32]} 18. Qb3 $2 {[%emt 0:05:02]} (18. bxa5 $11 bxa5 19. Nb5 Bxb5 20. cxb5) 18... Ne5 {[%emt 0:07:30]} 19. Be2 {[%emt 0:00:47]} (19. Rd1 $17 {was worth a try.}) 19... axb4 $19 {[%emt 0:12:06]} 20. Qxb4 {[%emt 0:00:41]} (20. axb4 {keeps fighting.} Bxc4 21. Nxc4 Rxa1 22. Nxe5 dxe5 23. Nb1) 20... Nf3+ {[%emt 0:02:36]} 21. Bxf3 {[%emt 0:00:33]} exf3 {[%emt 0:00:04]} 22. h3 (22. Nb5 $142 Qc8 23. Ra2 (23. Nxd6 {is a self mate.} Qh3 24. Qb2 Ng4)) 22... Qd7 ({Inferior is} 22... Bxc4 23. Bb2 Bd3 24. Rad1 $17) 23. g4 {[%emt 0:12:57] [#]} h5 {[%emt 0:17:15]} (23... Nxg4 $142 $1 {[%mdl 512]} 24. Qa4 (24. hxg4 Rxe3) 24... b5) 24. Qa4 {[%emt 0:02:00]} hxg4 {[%emt 0:03:45]} 25. hxg4 $2 {[%emt 0:00:17] [#]} (25. Qxd7 Nxd7 26. Bd2) 25... Rxe3 $1 {[%emt 0:01:53][%mdl 512] Weighted Error Value: White=0.96/Black=0.34} 0-1

[Event "41st Zalakaros Festival 2022"]
[Site "Zalakaros"]
[Date "2022.06.05"]
[Round "1.3"]
[White "Csonka, Balazs"]
[Black "Reitinger, Petr"]
[Result "1-0"]
[ECO "D02"]
[WhiteElo "2498"]
[BlackElo "1991"]
[Annotator "TA"]
[PlyCount "45"]
[EventDate "2022.06.05"]
[EventType "swiss"]
[EventCountry "HUN"]
[SourceTitle "playchess.com"]
[Source "ChessBase"]
[SourceQuality "1"]
[TimeControl "40/5400+30:1800+30"]

{[%evp 10,45,25,0,33,22,38,27,26,20,35,40,49,19,18,16,16,21,47,44,44,37,104,34,94,81,198,212,255,258,241,248,408,423,772,756,750,746]} 1. Nf3 {[%emt 0:00:42]} d5 {[%emt 0:00:51]} 2. d4 {[%emt 0:01:11]} Nf6 {[%emt 0:01:02]} 3. Bf4 {[%emt 0:02:08]} e6 {[%emt 0:01:54]} 4. e3 {[%emt 0:00:59]} Bd6 {[%emt 0:01:32]} 5. Bg3 {[%emt 0:02:53]} Ne4 {[%emt 0:06:30]} 6. Nbd2 {[%emt 0:04:04]} f5 {[%emt 0:01:03] D02: 1 d4 d5 2 Nf3 sidelines, including 2...Nf6 3 g3 and 2...Nf6 3 Bf4.} 7. c4 {[%emt 0:07:25]} c6 {[%emt 0:01:22]} 8. Bd3 {[%emt 0:03:16]} O-O {[%emt 0:02:46] [#] White has an edge.} 9. Rc1 $146 {[%emt 0:01:38]} ({Predecessor:} 9. O-O Nxg3 10. hxg3 Nd7 11. Qc2 Nf6 12. cxd5 cxd5 13. Rfc1 Bd7 14. Ne5 Qb6 15. Qb3 {0-1 (69) Raznikov,D (2528)-Tologontegin,S (2350) Chess.com INT 2016}) 9... Bxg3 {[%emt 0:14:20]} 10. hxg3 {[%emt 0:00:10][%cal Og3g4]} Nd7 {[%emt 0:00:14]} 11. b4 {[%emt 0:07:35]} Qe7 {[%emt 0:09:12]} 12. Qb3 {[%emt 0:15:21]} a5 {[%emt 0:02:02]} 13. b5 {[%emt 0:04:37]} Ndf6 {[%emt 0:06:00]} 14. Ne5 {[%emt 0:09:28]} cxb5 {[%emt 0:07:50] Hoping for ...Nxd2.} 15. Qxb5 {[%emt 0:08:48]} Qa3 {[%emt 0:08:00]} (15... Qb4 $1 $14 16. Bxe4 Nxe4) 16. Qb1 {[%emt 0:05:33] Active counter play!} (16. Rc2 $1 $16) 16... Nxd2 {[%emt 0:05:34]} (16... Nd7 $14) 17. Kxd2 $16 {[%emt 0:00:56]} Ne4+ {[%emt 0:00:56]} (17... dxc4 $16 {might work better.} 18. Rxc4 (18. Nxc4 Qb4+ 19. Ke2 Nd5 $14) (18. Bxc4 Ne4+ 19. Ke2 b5 $11) 18... b5) 18. Bxe4 $18 {[%emt 0:00:55]} fxe4 {[%emt 0:00:10] [#]} 19. f4 {[%emt 0:04:08]} Qb4+ {[%emt 0:05:01] [#]} 20. Rc3 $1 {[%emt 0:00:16]} dxc4 $2 {[%emt 0:00:47]} (20... Rd8 21. a3 Qxb1 22. Rxb1 dxc4 23. Rxc4 b5) 21. Qxe4 {[%emt 0:00:41][%csl Gh1][%cal Re4h7] Dancing on a razor blade.} Qb2+ {[%emt 0:00:41]} (21... g6 $142 22. Nxg6 Rf7) 22. Rc2 {[%emt 0:00:10][%csl Gh1][%cal Re4h7]} Qb4+ {[%emt 0:00:16]} 23. Ke2 {[%emt 0:00:12] Weighted Error Value: White=0.10 (very precise) /Black=0.38} 1-0

[Event "41st Zalakaros Festival 2022"]
[Site "Zalakaros"]
[Date "2022.06.05"]
[Round "1.4"]
[White "Fultner, Jaromir"]
[Black "Pranav Vijay"]
[Result "0-1"]
[ECO "C78"]
[WhiteElo "1976"]
[BlackElo "2265"]
[Annotator "TA"]
[PlyCount "113"]
[EventDate "2022.06.05"]
[EventType "swiss"]
[EventCountry "HUN"]
[SourceTitle "playchess.com"]
[Source "ChessBase"]
[SourceQuality "1"]
[TimeControl "40/5400+30:1800+30"]

{[%evp 19,113,33,29,0,0,0,0,-7,-5,-7,-7,-7,0,-35,-28,-28,-26,-76,-76,-72,-67,-64,-66,-122,-123,-134,-125,-110,-97,-90,0,0,-8,-94,-94,-85,-63,-64,-70,-155,-155,-152,-116,-139,-134,-128,-124,-156,-128,-129,-124,-126,-133,-141,-148,-154,-169,-199,-128,-156,-155,-165,-166,-170,-173,-190,-175,-183,-182,-244,-243,-231,-236,-240,-224,-236,-239,-249,-239,-241,-227,-241,-241,-247,-246,-283,-282,-351,-325,-478,-478,-426,-399,-406,-395,-1899]} 1. e4 {[%emt 0:00:37]} e5 {[%emt 0:01:51]} 2. Nf3 {[%emt 0:00:03]} Nc6 {[%emt 0:00:14]} 3. Bb5 {[%emt 0:00:12][%cal Bf1b5,Bb5a4,Ba4b3][%mdl 32]} a6 {[%emt 0:00:09]} 4. Ba4 {[%emt 0:00:07]} Nf6 {[%emt 0:00:07]} 5. O-O {[%emt 0:00:09]} b5 {[%emt 0:00:26]} 6. Bb3 {[%emt 0:00:11]} Bc5 {[%emt 0:00:07]} 7. c3 {[%emt 0:01:52]} d6 {[%emt 0:00:10]} 8. d4 {[%emt 0:00:31]} Bb6 {[%emt 0:00:03]} 9. a4 {[%emt 0:03:18] 9.Be3 is more fashionable.} Rb8 {[%emt 0:00:06]} 10. axb5 {[%emt 0:01:30]} axb5 {[%emt 0:00:08]} 11. dxe5 {[%emt 0:02:42] C78: Ruy Lopez: Archangelsk and Möller Defences.} (11. Na3 {keeps more tension.} exd4 12. cxd4 Na5 13. Bc2) 11... Nxe5 {[%emt 0:01:11]} 12. Nxe5 {[%emt 0:00:38]} dxe5 {[%emt 0:00:06]} 13. Qxd8+ {The position is equal.} Kxd8 14. Bg5 {[%emt 0:09:07]} Ke7 {[%emt 0:01:20]} 15. Na3 {[%emt 0:01:01]} c6 {[%emt 0:06:10] [#]} 16. Kh1 $146 {[%emt 0:02:26]} ({Predecessor:} 16. Nc2 h6 17. Bh4 Rd8 18. Rad1 Bg4 19. Rxd8 Rxd8 20. Nb4 Rd6 21. Re1 g5 22. Bg3 {½-½ (60) Rodriguez Calvo,M (2093)-Sofronie,I (2457) Marin 2002}) 16... h6 {[%emt 0:02:49]} 17. Bxf6+ {[%emt 0:00:20]} gxf6 {[%emt 0:01:40]} 18. f4 {[%emt 0:00:34]} (18. Nc2 $11) 18... exf4 $1 $17 {[%emt 0:06:55]} 19. Rxf4 {[%emt 0:00:58]} Bc7 $1 {[%emt 0:00:43]} 20. Rff1 {[%emt 0:04:09]} b4 $1 {[%emt 0:05:32]} 21. cxb4 {[%emt 0:02:39]} ({White should try} 21. Nc4 $15) 21... Rxb4 {[%emt 0:00:07]} 22. Bd1 {[%emt 0:04:48]} Be5 {[%emt 0:05:48]} 23. Nc2 {[%emt 0:01:46]} Rxe4 {[%emt 0:00:56] Black is more active.} 24. Ra7+ {[%emt 0:13:58]} Kd6 {[%emt 0:06:57]} (24... Kf8 $1 $17 {Threatening ...Rh4.} 25. Bf3 Rh4) 25. Bf3 $11 {[%emt 0:09:01]} Rh4 {[%emt 0:01:28]} 26. Rd1+ {[%emt 0:05:45]} (26. h3 $11) 26... Kc5 $17 {[%emt 0:00:36]} 27. Kg1 {[%emt 0:12:35]} Bxh2+ {[%emt 0:07:35] A strong pair of Bishops.} 28. Kf2 {[%emt 0:02:00]} Be5 {[%emt 0:00:17]} 29. b4+ {[%emt 0:01:09]} (29. Rxf7 $15 Kb6 30. b3) 29... Kb6 {[%emt 0:00:24]} 30. Ra8 {[%emt 0:02:39]} Kb7 {[%emt 0:03:18]} 31. Ra4 {[%emt 0:02:10][%cal Of3c6]} Rg8 {[%emt 0:06:10]} 32. Ne3 {[%emt 0:03:04] Prevents Bg4.} Bg3+ {[%emt 0:04:33]} 33. Kg1 {[%emt 0:02:34]} Bf4 {[%emt 0:05:10]} 34. Rd3 {[%emt 0:03:30]} Bh2+ {[%emt 0:04:45]} 35. Kf2 {[%emt 0:00:45]} Bg3+ {[%emt 0:01:18]} 36. Kg1 {[%emt 0:00:11]} Kb6 {[%emt 0:00:39]} 37. Rc3 {[%emt 0:01:19] [#]} Bb7 {[%emt 0:01:52]} 38. Be2 {[%emt 0:04:08]} Bh2+ {[%emt 0:04:04]} (38... Rf4 $19 {Threatens to win with ...Bf2+.} 39. Nc2 Rh4) 39. Kf2 {[%emt 0:00:15]} Rf4+ {[%emt 0:00:07]} 40. Bf3 {[%emt 0:00:25] [#]} Bg3+ $1 {[%emt 0:00:19]} 41. Ke2 {[%emt 0:01:57]} Re8 {[%emt 0:02:56]} 42. Kd2 {[%emt 0:05:45]} Rd4+ {[%emt 0:00:56]} 43. Kc2 {[%emt 0:00:57]} Be1 {[%emt 0:00:43]} 44. Rd3 {[%emt 0:05:46]} (44. Rb3 $142) 44... Rxd3 $19 {[%emt 0:00:21]} ({But not} 44... Rxb4 $2 45. Nc4+ Kc7 46. Nd6 Rxa4 47. Nxe8+ Kb6 48. Rd7) 45. Kxd3 {[%emt 0:00:23]} Rd8+ {[%emt 0:02:12]} 46. Ke2 {[%emt 0:01:26]} Bc3 {[%emt 0:00:41]} 47. Be4 {[%emt 0:01:26]} Ba6+ {[%emt 0:00:50]} 48. Kf3 {[%emt 0:00:39][%cal Oe4c6]} Bb5 {[%emt 0:00:07]} 49. Ra2 {[%emt 0:01:15]} Bxb4 {[%emt 0:00:09]} 50. Rc2 {[%emt 0:01:03]} h5 {[%emt 0:01:58]} 51. g3 {[%emt 0:01:25]} Rg8 {[%emt 0:01:32]} 52. Rh2 {[%emt 0:01:08]} Rg5 {[%emt 0:01:06]} 53. Nf5 {[%emt 0:00:44]} Bc3 {[%emt 0:00:06]} 54. Rc2 {[%emt 0:02:31]} (54. Nd6 {is a better defense.}) 54... Be5 {[%emt 0:00:07]} 55. Rd2 {[%emt 0:01:16]} Bc4 {[%emt 0:00:41]} 56. Rc2 {[%emt 0:00:40]} Bd5 {[%emt 0:00:21] ...Rxf5+ is the strong threat.} 57. Rg2 $2 {[%emt 0:02:11] Weighted Error Value: White=0.20 (precise) /Black=0.09 (flawless)} (57. Ke3) 0-1

[Event "41st Zalakaros Festival 2022"]
[Site "Zalakaros"]
[Date "2022.06.05"]
[Round "1.5"]
[White "Sammed Jaykumar, Shete"]
[Black "Balogh, Marton"]
[Result "1-0"]
[ECO "C11"]
[WhiteElo "2400"]
[BlackElo "1975"]
[Annotator "TA"]
[PlyCount "164"]
[EventDate "2022.06.05"]
[EventType "swiss"]
[EventCountry "HUN"]
[SourceTitle "playchess.com"]
[Source "ChessBase"]
[SourceQuality "1"]
[TimeControl "40/5400+30:1800+30"]

{[%evp 21,164,4,14,-39,-10,-16,26,0,22,5,27,11,27,14,20,-8,0,-5,-2,-99,-26,-72,-60,-118,-74,-69,-19,-83,-80,-66,-6,-200,-68,-73,-69,-72,-17,-17,-17,-17,-17,-137,0,0,0,-3,12,12,28,28,53,56,60,46,46,46,52,46,46,47,52,40,58,24,36,5,5,6,28,5,8,0,0,0,0,0,0,0,0,0,0,0,0,0,0,0,0,0,0,0,0,0,0,0,8,0,0,0,0,0,0,0,0,0,0,0,0,0,0,0,0,0,0,0,0,8,8,0,0,0,0,0,0,0,0,0,0,0,0,0,0,0,0,0,0,0,0,-29962,-29953,-29976,-29976,-29967,-12766,-5142,-2841]} 1. e4 {[%emt 0:01:19]} e6 {[%emt 0:01:01]} 2. Nf3 {[%emt 0:00:33]} d5 {[%emt 0:00:17]} 3. Nc3 {[%emt 0:00:08]} Nf6 {[%emt 0:00:31]} 4. e5 {[%emt 0:00:06]} Nfd7 {[%emt 0:00:11]} 5. d4 {[%emt 0:00:05]} a6 {[%emt 0:01:23]} 6. Bd3 {[%emt 0:00:35]} c5 {[%emt 0:00:18]} 7. dxc5 {[%emt 0:00:06]} Bxc5 {[%emt 0:01:31]} 8. O-O {[%emt 0:02:30]} Nc6 {[%emt 0:00:45]} 9. Bf4 {[%emt 0:00:07]} f6 {[%emt 0:06:50]} 10. exf6 {[%emt 0:00:33]} Nxf6 {[%emt 0:00:20]} 11. Ne5 {[%emt 0:02:05]} O-O {[%emt 0:05:15]} 12. Bg3 {[%emt 0:01:44] C11: French: Classical System: 4 e5 and 4 Bg5 dxe4.} (12. Nxc6 $11 bxc6 13. Qe2) 12... Nxe5 {[%emt 0:02:02]} (12... Bd7 $5) 13. Bxe5 {[%emt 0:00:08] [#]} Bd6 $146 {[%emt 0:02:45]} ({Predecessor:} 13... Bd7 14. Qe2 Be8 15. Bg3 Bf7 16. Bh4 Re8 17. Qf3 e5 18. Bf5 e4 19. Qh3 g6 {½-½ (81) Rogers,C (2010)-Ladanyike Karakas,E (2020) Biel 1991}) 14. f4 {[%emt 0:03:32] White has an edge.} Qc7 {[%emt 0:06:52]} 15. Qe2 {[%emt 0:00:31]} Bd7 {[%emt 0:02:31]} 16. Rae1 {[%emt 0:00:51]} h6 {[%emt 0:08:46]} 17. Kh1 {[%emt 0:05:54] Active counter play!} Rae8 {[%emt 0:03:34]} 18. Qf3 {[%emt 0:09:24]} Bc6 {[%emt 0:10:27]} 19. Qh3 {[%emt 0:01:58]} Bxe5 {[%emt 0:13:24]} 20. Rxe5 {[%emt 0:08:18]} (20. fxe5 $11 Ne4 21. Rxf8+ (21. Bxe4 Rxf1+ 22. Rxf1 dxe4 $15) 21... Kxf8 22. Qf3+ (22. Bxe4 dxe4 23. Qg3 Kg8 $15) 22... Kg8 23. Nxe4 dxe4 24. Bxe4) 20... Qd6 {[%emt 0:02:06]} ({Black should try} 20... d4 $17 21. Ne2 Nd5) 21. Bg6 {[%emt 0:04:36]} (21. Qg3 $11 {deserves consideration.}) 21... Re7 {[%emt 0:02:54][%cal Of6g4]} 22. Rfe1 {[%emt 0:00:40]} (22. Rd1 $15) 22... Nd7 {[%emt 0:03:24]} 23. Rxe6 {[%emt 0:06:28]} Qxf4 {[%emt 0:01:52]} 24. Rg1 {[%emt 0:07:10]} (24. Rxe7 $2 {gets mated.} Qf1+ $3 {[%mdl 512]} 25. Rxf1 Rxf1#) ({But not} 24. Bh7+ $2 Kh8 25. Bd3 (25. Rxe7 $2 Qf1+ 26. Rxf1 Rxf1#) 25... Rxe6 26. Qxe6 Nc5 $19) (24. Ne2 $1 $11 {remains equal.} Qf2 25. Rg1 Rxe6 26. Qxe6+ Kh8 27. Qe7) 24... Qg5 {[%emt 0:09:07]} 25. Ne2 {[%emt 0:09:00]} Kh8 {[%emt 0:01:36]} (25... Nc5 $15 26. Rxe7 Qxe7) 26. Bd3 $2 {[%emt 0:08:54]} (26. Rxe7 $11 Qxe7 27. Nd4) 26... Nc5 {[%emt 0:04:52]} (26... Ne5 $1 $19 {[%cal Re5d3]} 27. Rxe7 Ng4 28. Qxg4 (28. Rf7 $2 Rxf7 29. Qxg4 Qxg4 $19) 28... Qxg4) 27. Rxe7 $15 {[%emt 0:05:09]} Qxe7 {[%emt 0:00:43]} 28. Nd4 {[%emt 0:00:10] [#]} Ne4 {[%emt 0:05:48]} (28... Be8 $1 $17) 29. Bxe4 $11 {[%emt 0:00:12]} Qxe4 {[%emt 0:00:32]} 30. c3 {[%emt 0:09:31]} Rf2 {[%emt 0:01:32]} 31. Qg3 {[%emt 0:01:47]} (31. Nxc6 $11 bxc6 32. Qc8+ Kh7 33. Qxc6) 31... Qf4 {[%emt 0:00:40]} (31... Rxb2 $17 {White must now prevent ...Kh7.} 32. a3 Kh7) 32. Qxf4 {[%emt 0:04:14]} Rxf4 {[%emt 0:00:01][%mdl 4096] Endgame KRB-KRN} 33. Nf3 {[%emt 0:00:14]} Re4 {[%emt 0:00:57]} 34. Re1 {[%emt 0:00:15]} Rxe1+ {[%emt 0:01:06]} 35. Nxe1 {[%emt 0:00:05] KB-KN} Kg8 {[%emt 0:00:48]} 36. Kg1 {[%emt 0:00:05]} Kf7 {[%emt 0:00:03]} 37. Kf2 {[%emt 0:00:03]} Ke6 {[%emt 0:00:45]} 38. Ke3 {[%emt 0:00:05]} Ke5 {[%emt 0:01:24]} 39. Nf3+ {[%emt 0:00:45]} Kd6 {[%emt 0:00:16]} 40. Kd4 {[%emt 0:00:00]} Bd7 {[%emt 0:00:00]} 41. Ne5 {[%emt 0:02:36]} Be6 {[%emt 0:02:40]} 42. g3 {[%emt 0:01:28]} g5 {[%emt 0:04:19]} 43. h4 {[%emt 0:02:15]} gxh4 $1 {[%emt 0:01:22]} 44. gxh4 {[%emt 0:00:36]} b6 {[%emt 0:03:09]} 45. a3 {[%emt 0:01:23]} Ke7 {[%emt 0:08:20]} 46. Ke3 {[%emt 0:03:23]} Kf6 {[%emt 0:02:11]} 47. Kf4 {[%emt 0:00:42]} Bc8 {[%emt 0:06:56]} 48. Nc6 {[%emt 0:01:13]} a5 {[%emt 0:02:13]} 49. b3 {[%emt 0:05:02]} Bd7 {[%emt 0:01:37]} 50. Ne5 {[%emt 0:00:43]} Be6 {[%emt 0:01:43]} 51. Nf3 {[%emt 0:01:42]} Bc8 {[%emt 0:01:24]} 52. Ne5 {[%emt 0:01:18]} Be6 {[%emt 0:00:38]} 53. Nd3 {[%emt 0:00:36]} Bc8 {[%emt 0:01:09]} 54. Ne1 {[%emt 0:00:00]} Bd7 {[%emt 0:00:00]} 55. Ng2 {[%emt 0:00:00]} Bc8 {[%emt 0:00:00]} 56. Ne3 {[%emt 0:00:00]} Be6 {[%emt 0:00:00]} 57. b4 {[%emt 0:00:00]} h5 {[%emt 0:00:00]} 58. bxa5 {[%emt 0:00:00]} bxa5 {[%emt 0:00:00]} 59. Nc2 {[%emt 0:00:00]} Bc8 {[%emt 0:00:00]} 60. Nd4 {[%emt 0:00:00] Hoping for Nb3.} a4 {[%emt 0:02:15] Prevents Nb3.} 61. Nc2 {[%emt 0:00:00]} Bg4 {[%emt 0:00:55]} 62. Ne3 {[%emt 0:00:00]} Be6 {[%emt 0:00:07]} 63. Nf1 {[%emt 0:00:00]} Bg4 {[%emt 0:00:41]} 64. Ng3 {[%emt 0:00:00]} Bd1 {[%emt 0:00:53]} 65. Nf5 {[%emt 0:00:00]} Bg4 {[%emt 0:00:41]} 66. Nd6 {[%emt 0:00:10]} Ke6 {[%emt 0:00:30]} 67. Nb7 {[%emt 0:00:15]} Kf6 {[%emt 0:00:32]} 68. Nc5 {[%emt 0:02:07]} Bd1 {[%emt 0:00:08]} 69. Nd3 {[%emt 0:00:03]} Bb3 {[%emt 0:00:49]} 70. Nb4 {[%emt 0:01:01]} Bc4 {[%emt 0:00:29]} 71. Nc2 {[%emt 0:00:15]} Be2 {[%emt 0:00:37]} 72. Ne3 {[%emt 0:01:16]} Ke6 {[%emt 0:00:30]} 73. Kg5 {[%emt 0:02:07]} Ke5 {[%emt 0:00:28]} 74. Nf5 {[%emt 0:00:03]} Bd1 {[%emt 0:00:33]} 75. Ng3 {[%emt 0:02:06]} d4 {[%emt 0:00:27]} 76. cxd4+ {[%emt 0:00:03]} Kxd4 77. Nxh5 {[%emt 0:00:03]} Kc3 {[%emt 0:00:38]} 78. Nf6 {[%emt 0:00:07]} Kb3 {[%emt 0:00:31]} 79. Ng4 $2 {[%emt 0:00:07][%mdl 8192]} (79. Nd7 $11) 79... Kxa3 {[%emt 0:00:20]} 80. h5 {[%emt 0:00:04]} Bc2 {[%emt 0:00:46]} 81. Ne3 {[%emt 0:00:09] [#]} Bh7 $1 {[%emt 0:00:36] ( -> ...Kb3)} 82. Kh6 {[%emt 0:00:18]} Be4 {[%mdl 32768] Weighted Error Value: White=0.27 (precise) /Black=0.22 (precise) . Loss on time!?} 1-0